bitfinex-derivatives/quotes_BTCF0:USTF0_20250514
["timestamp","ask_amount","ask_price","bid_price","bid_amount"]
[1747231552108,2.02248698,103850.0,103840.0,0.001]
[1747231552302,0.3608,103840.0,103810.0,0.35836543]
[1747231552603,1.09804308,103820.0,103810.0,0.37263507]
[1747231552809,1.48786265,103820.0,103810.0,0.37263507]
[1747231552995,1.69136265,103820.0,103810.0,0.01523289]
[1747231553200,1.85336265,103820.0,103810.0,0.01523289]
[1747231553901,1.85336265,103820.0,103810.0,0.01823289]
[1747231554109,1.85336265,103820.0,103810.0,9e-08]
[1747231554407,1.94968665,103820.0,103810.0,9e-08]
[1747231555305,2.00771593,103820.0,103810.0,0.00300009]
[1747231555705,2.00771593,103820.0,103810.0,9e-08]
[1747231555907,0.1926307,103810.0,103800.0,0.1]
[1747231556106,2.13787096,103810.0,103800.0,0.4150952]
[1747231556307,2.13787096,103810.0,103800.0,0.1]
[1747231556708,1.60999096,103810.0,103800.0,0.1]
[1747231557012,1.0983507,103810.0,103800.0,0.70406969]
[1747231557308,0.9383507,103810.0,103800.0,1.07586969]
[1747231557500,0.7714307,103810.0,103800.0,1.07586969]
[1747231557703,0.6740707,103810.0,103800.0,1.07586969]
[1747231558106,0.6740707,103810.0,103800.0,1.07686969]
[1747231558303,1.0348707,103810.0,103800.0,1.07686969]
[1747231558809,0.6740707,103810.0,103800.0,1.07686969]
[1747231559010,1.0348707,103810.0,103800.0,1.07686969]
[1747231559909,0.4106307,103810.0,103800.0,1.07686969]
[1747231560114,0.002,103810.0,103800.0,1.67952995]
[1747231560811,0.1946307,103810.0,103800.0,1.67952995]
[1747231561211,0.1946307,103810.0,103800.0,1.43766969]
[1747231561408,0.002,103810.0,103800.0,1.43766969]
[1747231561612,0.1946307,103810.0,103800.0,1.67952995]
[1747231561910,0.1946307,103810.0,103800.0,1.43766969]
[1747231562410,0.1946307,103810.0,103800.0,2.93766969]
[1747231562712,0.002,103810.0,103800.0,2.93766969]
[1747231563416,0.1946307,103810.0,103800.0,2.93766969]
[1747231563805,0.002,103810.0,103800.0,2.93766969]
[1747231564011,0.002,103810.0,103800.0,3.17952995]
[1747231564210,0.002,103810.0,103800.0,3.52586595]
[1747231564419,0.002,103810.0,103800.0,3.28148666]
[1747231565306,0.79729096,103810.0,103800.0,0.8898411]
[1747231565611,1.00909096,103810.0,103800.0,1.0824904]
[1747231565807,1.27217096,103810.0,103800.0,1.0824904]
[1747231566110,1.4003107,103810.0,103800.0,0.8898411]
[1747231566414,0.1926864,103780.0,103770.0,0.00096362]
[1747231566617,0.1926864,103780.0,103770.0,0.40596862]
[1747231566804,0.1926864,103780.0,103770.0,2.23551416]
[1747231567007,1.0636354,103790.0,103780.0,0.1926864]
[1747231567309,1.0636354,103790.0,103780.0,0.6126816]
[1747231567510,1.0636354,103790.0,103780.0,0.43444554]
[1747231567703,1.1628354,103790.0,103780.0,0.63190786]
[1747231567908,1.1628354,103790.0,103780.0,0.82459426]
[1747231568811,1.1828354,103790.0,103780.0,0.82459426]
[1747231569116,1.1628354,103790.0,103780.0,0.82859426]
[1747231569307,1.44469566,103790.0,103780.0,0.32081266]
[1747231569521,1.44469566,103790.0,103780.0,0.63590786]
[1747231569817,1.69469566,103790.0,103780.0,0.33554554]
[1747231570016,0.0481746,103780.0,103760.0,0.00144568]
[1747231570213,1.42710526,103770.0,103760.0,0.19416918]
[1747231570521,1.06254,103770.0,103760.0,0.49402221]
[1747231570717,0.72428,103780.0,103770.0,0.192705]
[1747231571019,0.5534864,103780.0,103770.0,0.7113002]
[1747231571219,0.6579864,103780.0,103770.0,0.8733002]
[1747231571517,0.5534864,103780.0,103770.0,0.9696718]
[1747231572123,0.6582864,103780.0,103770.0,0.7769668]
[1747231572324,0.6582864,103780.0,103770.0,0.5734668]
[1747231572325,1.34214666,103780.0,103770.0,0.5734668]
[1747231572616,1.55012842,103780.0,103770.0,1e-07]
[1747231572808,0.192705,103770.0,103760.0,0.004]
[1747231573015,0.1927235,103760.0,103750.0,0.00192762]
[1747231573208,1.29218376,103760.0,103750.0,0.00192762]
[1747231573623,1.00218376,103760.0,103750.0,0.00192762]
[1747231574126,1.76604402,103760.0,103750.0,0.00192762]
[1747231574509,0.1927607,103740.0,103730.0,0.00096399]
[1747231574709,2.04174096,103740.0,103730.0,0.00096399]
[1747231574914,2.24074096,103740.0,103730.0,0.19374329]
[1747231575118,2.24074096,103740.0,103730.0,0.00096399]
[1747231575119,1.98074096,103740.0,103730.0,0.00096399]
[1747231575520,1.98074096,103740.0,103730.0,0.19374329]
[1747231575816,1.98074096,103740.0,103730.0,0.00196399]
[1747231576017,2.24174096,103740.0,103730.0,0.00196399]
[1747231576420,0.1927979,103720.0,103710.0,0.00337477]
[1747231576721,1.69177816,103720.0,103710.0,0.00337477]
[1747231576923,1.90077816,103720.0,103710.0,0.00337477]
[1747231577324,2.27077816,103720.0,103710.0,0.00337477]
[1747231577620,2.61913842,103720.0,103710.0,7e-08]
[1747231578124,2.37727816,103720.0,103710.0,7e-08]
[1747231578421,2.37727816,103720.0,103710.0,0.00100007]
[1747231578620,2.37927816,103720.0,103710.0,0.00100007]
[1747231578828,2.1372979,103720.0,103710.0,0.19381647]
[1747231579124,1.7717979,103720.0,103710.0,0.86971167]
[1747231579317,2.01365816,103720.0,103710.0,0.86971167]
[1747231579512,1.2463979,103720.0,103710.0,0.96612973]
[1747231579717,1.6519179,103720.0,103710.0,0.97175044]
[1747231579917,1.6519179,103720.0,103710.0,0.97175037]
[1747231580329,1.1893179,103720.0,103710.0,0.97175037]
[1747231580718,1.2924179,103720.0,103710.0,0.97175037]
[1747231582231,1.55427816,103720.0,103710.0,0.48371591]
[1747231582423,1.87427816,103720.0,103710.0,0.49829586]
[1747231583119,1.87427816,103720.0,103710.0,0.33629586]
[1747231583724,1.87427816,103720.0,103710.0,0.02120066]
[1747231583917,2.23507816,103720.0,103710.0,0.02120066]
[1747231584319,2.47693842,103720.0,103710.0,0.02120066]
[1747231584615,2.23507816,103720.0,103710.0,0.02120066]
[1747231586723,1.9932179,103720.0,103710.0,0.02120066]
[1747231587029,2.23507816,103720.0,103710.0,0.02120066]
[1747231587729,1.9929779,103720.0,103710.0,0.33629586]
[1747231588022,2.23483816,103720.0,103710.0,0.63131226]
[1747231588226,2.23483816,103720.0,103710.0,0.53669586]
[1747231589030,1.7299779,103720.0,103710.0,0.72951226]
[1747231589329,1.7299779,103720.0,103710.0,0.53669586]
[1747231590130,1.7299779,103720.0,103710.0,0.72951226]
[1747231590626,1.4676979,103720.0,103710.0,0.63131226]
[1747231590833,0.3029979,103720.0,103710.0,1.42599058]
[1747231591040,0.003,103720.0,103710.0,1.18413032]
[1747231591327,0.003,103720.0,103710.0,1.34613032]
[1747231591526,0.1957979,103720.0,103710.0,1.44255031]
[1747231591724,0.003,103720.0,103710.0,1.44255031]
[1747231591925,0.003,103720.0,103710.0,2.94255031]
[1747231592326,0.1957979,103720.0,103710.0,2.94255031]
[1747231592728,0.2988979,103720.0,103710.0,2.94255031]
[1747231594135,0.2988979,103720.0,103710.0,2.84613032]
[1747231594338,0.7588979,103720.0,103710.0,2.48533032]
[1747231594836,0.3980979,103720.0,103710.0,2.48533032]
[1747231595028,0.7588979,103720.0,103710.0,0.98533032]
[1747231595224,1.31279816,103720.0,103710.0,0.79251392]
[1747231595442,1.57279816,103720.0,103710.0,0.69691392]
[1747231595622,1.57279816,103720.0,103710.0,0.49829586]
[1747231595822,1.83579816,103720.0,103710.0,0.49829586]
[1747231596234,1.83279816,103720.0,103710.0,0.43769586]
[1747231596542,1.83279816,103720.0,103710.0,0.33629586]
[1747231596723,1.83279816,103720.0,103710.0,0.43769586]
[1747231597429,1.83279816,103720.0,103710.0,0.33629586]
[1747231597830,1.83279816,103720.0,103710.0,0.33822422]
[1747231598039,1.83279816,103720.0,103710.0,0.32364427]
[1747231601138,0.7050979,103720.0,103710.0,0.87726067]
[1747231601339,0.41891437,103750.0,103730.0,0.0963841]
[1747231601534,0.1981,103740.0,103730.0,1.0614452]
[1747231601840,0.3908607,103740.0,103730.0,0.7981567]
[1747231602028,0.1981,103740.0,103730.0,1.1132519]
[1747231602233,0.9136662,103760.0,103750.0,0.1927421]
[1747231602436,1.2558503,103760.0,103750.0,0.5078373]
[1747231602641,0.9940903,103760.0,103750.0,0.6091373]
[1747231602830,1.2558103,103760.0,103750.0,0.6091373]
[1747231603026,0.296,103760.0,103750.0,0.6091373]
[1747231603227,0.002,103760.0,103750.0,1.47017845]
[1747231603632,0.002,103760.0,103750.0,2.97017845]
[1747231603842,0.2007235,103760.0,103750.0,2.97117845]
[1747231604037,0.008,103760.0,103750.0,2.97117845]
[1747231604247,0.1927235,103760.0,103750.0,0.67577609]
[1747231604443,0.88858376,103760.0,103750.0,0.86851819]
[1747231604841,1.24938376,103760.0,103750.0,0.5793952]
[1747231605043,1.25738376,103760.0,103750.0,0.5803952]
[1747231605238,1.25738376,103760.0,103750.0,0.3170952]
[1747231605439,1.25738376,103760.0,103750.0,0.001]
[1747231605744,1.51898376,103760.0,103750.0,0.002]
[1747231605939,1.77470376,103760.0,103750.0,0.001]
[1747231606548,1.77470376,103760.0,103750.0,0.00292762]
[1747231608045,1.5328435,103760.0,103750.0,0.00292762]
[1747231608246,1.77470376,103760.0,103750.0,0.00292762]
[1747231609548,1.5328435,103760.0,103750.0,0.19566972]
[1747231609741,0.6487235,103760.0,103750.0,0.60714581]
[1747231609942,0.6601235,103760.0,103750.0,0.70494581]
[1747231610452,1.27278376,103760.0,103750.0,0.41440371]
[1747231610642,1.0309235,103760.0,103750.0,0.51220371]
[1747231611249,1.0309235,103760.0,103750.0,0.51782442]
[1747231611751,1.0309235,103760.0,103750.0,0.71056652]
[1747231611948,1.26278376,103760.0,103750.0,0.00854833]
[1747231612142,1.59278376,103760.0,103750.0,0.00854833]
[1747231612343,1.59278376,103760.0,103750.0,0.32364353]
[1747231613347,1.3509235,103760.0,103750.0,0.32364353]
[1747231613547,1.59278376,103760.0,103750.0,0.32364353]
[1747231615754,1.37278376,103760.0,103750.0,0.32364353]
[1747231616451,1.26278376,103760.0,103750.0,0.32399374]
[1747231616656,1.54278376,103760.0,103750.0,0.32399374]
[1747231618048,1.54278376,103760.0,103750.0,0.51673584]
[1747231618049,1.3009235,103760.0,103750.0,0.51673584]
[1747231618260,1.3009235,103760.0,103750.0,0.32399374]
[1747231618655,1.3009235,103760.0,103750.0,0.51673584]
[1747231619049,1.3009235,103760.0,103750.0,0.61933584]
[1747231619553,1.3009235,103760.0,103750.0,0.42659374]
[1747231619754,1.3009235,103760.0,103750.0,0.52279374]
[1747231620357,1.3009235,103760.0,103750.0,0.42019374]
[1747231620861,1.54278376,103760.0,103750.0,0.32399374]
[1747231621062,0.1927793,103730.0,103720.0,0.3608]
[1747231621362,0.2027793,103730.0,103720.0,0.564]
[1747231621557,0.2027793,103730.0,103720.0,0.85735154]
[1747231621558,0.4083793,103730.0,103720.0,0.85735154]
[1747231621860,0.4083793,103730.0,103720.0,0.95373243]
[1747231622059,0.9791793,103730.0,103720.0,0.59293243]
[1747231622251,0.9791793,103730.0,103720.0,1.14953033]
[1747231622252,0.3241,103730.0,103720.0,1.14953033]
[1747231622455,0.6033477,103740.0,103730.0,0.1927793]
[1747231622751,0.1927607,103740.0,103730.0,1.538553]
[1747231622959,0.1927607,103740.0,103730.0,1.4903593]
[1747231623254,0.2968607,103740.0,103730.0,1.50690781]
[1747231623653,0.2968607,103740.0,103730.0,1.45871621]
[1747231625064,0.2988607,103740.0,103730.0,1.45871621]
[1747231625759,0.6388607,103740.0,103730.0,1.21776031]
[1747231625963,0.6388607,103740.0,103730.0,1.41053961]
[1747231626162,0.2988607,103740.0,103730.0,1.41053961]
[1747231626361,0.3988607,103740.0,103730.0,1.41053961]
[1747231627665,0.2988607,103740.0,103730.0,1.41053961]
[1747231627866,0.6596607,103740.0,103730.0,0.56360877]
[1747231628063,1.03452096,103740.0,103730.0,0.10187717]
[1747231628367,0.1927793,103730.0,103720.0,0.00562071]
[1747231628566,0.1927979,103720.0,103710.0,0.19432836]
[1747231628763,1.84827816,103720.0,103710.0,0.00192836]
[1747231628962,1.95237816,103720.0,103710.0,6e-08]
[1747231629358,1.89505626,103720.0,103710.0,6e-08]
[1747231630166,1.37273626,103720.0,103710.0,6e-08]
[1747231630372,0.9381979,103720.0,103710.0,0.584768]
[1747231630563,0.7540979,103720.0,103710.0,0.77978606]
[1747231630766,1.2763779,103720.0,103710.0,0.77978606]
[1747231631367,0.3932979,103720.0,103710.0,0.78378606]
[1747231631574,0.3932979,103720.0,103710.0,1.02593057]
[1747231631575,0.5508579,103720.0,103710.0,1.02593057]
[1747231631773,0.5508579,103720.0,103710.0,0.78378606]
[1747231631966,0.5518579,103720.0,103710.0,0.77978606]
[1747231632168,0.5518579,103720.0,103710.0,0.94378606]
[1747231634484,0.001,103720.0,103710.0,1.30458606]
[1747231634687,0.1937979,103720.0,103710.0,1.30458606]
[1747231634883,0.001,103720.0,103710.0,1.30458606]
[1747231635189,0.001,103720.0,103710.0,1.54673057]
[1747231635784,0.1937979,103720.0,103710.0,1.54673057]
[1747231635979,0.3367605,103740.0,103730.0,0.1927793]
[1747231636184,0.6999259,103740.0,103730.0,0.64813084]
[1747231636385,0.5553489,103740.0,103730.0,0.85083084]
[1747231636592,0.5553489,103740.0,103730.0,0.9472489]
[1747231636787,0.2948689,103740.0,103730.0,0.9472489]
[1747231637895,0.005,103740.0,103730.0,1.3090489]
[1747231638083,0.1977607,103740.0,103730.0,1.3090489]
[1747231639194,1.25450521,103740.0,103730.0,0.7554696]
[1747231639500,1.1089607,103740.0,103730.0,0.2617]
[1747231639795,1.61158521,103740.0,103730.0,0.163]
[1747231639991,1.70748521,103740.0,103730.0,0.163]
[1747231640299,1.4653407,103740.0,103730.0,0.001]
[1747231640594,1.70748521,103740.0,103730.0,0.00662071]
[1747231640792,1.4653407,103740.0,103730.0,0.00662071]
[1747231641093,1.70748521,103740.0,103730.0,0.00662071]
[1747231641482,1.1553407,103740.0,103730.0,0.49275155]
[1747231641683,0.6986407,103740.0,103730.0,0.49729948]
[1747231641883,0.1088,103740.0,103730.0,0.79065102]
[1747231642093,0.3015607,103740.0,103730.0,0.95265102]
[1747231642294,0.54370521,103740.0,103730.0,0.46652018]
[1747231642596,1.62948521,103740.0,103730.0,0.13310271]
[1747231642795,1.72788521,103740.0,103730.0,0.13310271]
[1747231643186,0.1927793,103730.0,103720.0,0.00562071]
[1747231643385,1.59284381,103730.0,103720.0,0.00562071]
[1747231643590,1.3506993,103730.0,103720.0,0.00562071]
[1747231643791,1.3506993,103730.0,103710.0,0.39431306]
[1747231643792,0.1927979,103720.0,103710.0,0.39431646]
[1747231643986,1.0605979,103720.0,103710.0,0.687668]
[1747231644192,1.0605979,103720.0,103710.0,0.78406747]
[1747231644392,1.56322241,103720.0,103710.0,0.09639953]
[1747231644701,1.56322241,103720.0,103710.0,6e-08]
[1747231644890,1.66162241,103720.0,103710.0,6e-08]
[1747231645487,1.66162241,103720.0,103710.0,0.00200006]
[1747231645693,1.66262241,103720.0,103710.0,0.00200006]
[1747231646001,1.90476692,103720.0,103710.0,6e-08]
[1747231646298,0.1928164,103710.0,103700.0,6e-08]
[1747231646500,1.56380091,103710.0,103700.0,6e-08]
[1747231646803,1.66022891,103710.0,103700.0,6e-08]
[1747231646998,1.66022891,103710.0,103700.0,0.01452123]
[1747231647191,0.192835,103700.0,103690.0,0.00096437]
[1747231647388,1.65735951,103700.0,103690.0,0.00096437]
[1747231647805,1.415215,103700.0,103690.0,0.00096437]
[1747231648104,1.65735951,103700.0,103690.0,0.00096437]
[1747231648302,1.81935951,103700.0,103690.0,0.00096437]
[1747231648902,1.81935951,103700.0,103690.0,0.00396437]
[1747231649105,1.83388784,103700.0,103690.0,0.00396437]
[1747231649309,1.83388784,103700.0,103690.0,0.00696437]
[1747231649501,0.3608,103690.0,103660.0,0.24290679]
[1747231649695,1.15663531,103670.0,103660.0,0.24290679]
[1747231649905,1.53663531,103670.0,103660.0,0.24290679]
[1747231650107,1.88933531,103670.0,103660.0,0.24290679]
[1747231650899,0.9255908,103670.0,103660.0,0.53625833]
[1747231651097,1.88701531,103670.0,103660.0,0.53625833]
[1747231651298,1.88701531,103670.0,103660.0,0.24290679]
[1747231651498,0.1929094,103660.0,103650.0,0.48804004]
[1747231651797,1.1017094,103660.0,103650.0,0.48804004]
[1747231652101,1.1017094,103660.0,103650.0,0.94339158]
[1747231652306,1.6221894,103660.0,103650.0,1.03985615]
[1747231652494,1.6221894,103660.0,103650.0,0.99162435]
[1747231652699,1.6221894,103660.0,103650.0,0.99362435]
[1747231654906,1.6221894,103660.0,103650.0,0.99924506]
[1747231655208,1.4421894,103660.0,103650.0,0.95101496]
[1747231655405,1.4421894,103660.0,103650.0,0.75810156]
[1747231655702,1.68433391,103660.0,103650.0,0.95102966]
[1747231655909,1.68433391,103660.0,103650.0,0.75810156]
[1747231656703,1.4421894,103660.0,103650.0,0.75810156]
[1747231656915,0.1929094,103660.0,103650.0,1.40828906]
[1747231657103,0.1929094,103660.0,103650.0,1.36005846]
[1747231657305,0.2902094,103660.0,103650.0,1.36005846]
[1747231657610,0.3856094,103660.0,103650.0,1.36005846]
[1747231658010,0.2902094,103660.0,103650.0,1.36005846]
[1747231658708,0.3856094,103660.0,103650.0,1.36005846]
[1747231659215,0.3856094,103660.0,103650.0,1.37472407]
[1747231659507,0.85794,103670.0,103660.0,0.1929094]
[1747231659705,0.4554722,103680.0,103670.0,0.1928908]
[1747231659903,0.5502722,103680.0,103670.0,1.05164234]
[1747231660102,0.6545722,103680.0,103670.0,1.31011621]
[1747231660304,0.6745722,103680.0,103670.0,1.32478182]
[1747231660500,0.6545722,103680.0,103670.0,1.32478182]
[1747231660906,0.3939722,103680.0,103670.0,1.32478182]
[1747231662107,0.3949722,103680.0,103670.0,1.32478182]
[1747231662314,0.3989722,103680.0,103670.0,1.32578182]
[1747231665601,0.2061,103680.0,103670.0,1.32578182]
[1747231665912,0.007,103680.0,103670.0,1.32578182]
[1747231666112,0.007,103680.0,103670.0,1.82748633]
[1747231666813,0.007,103680.0,103670.0,1.58534182]
[1747231669211,0.1998722,103680.0,103670.0,1.58534182]
[1747231671011,0.1998722,103680.0,103670.0,1.59096253]
[1747231671419,0.007,103680.0,103670.0,1.77557653]
[1747231671606,0.1998722,103680.0,103670.0,1.77557653]
[1747231673625,0.007,103680.0,103670.0,1.77557653]
[1747231674009,0.4090043,103710.0,103680.0,0.0482139]
[1747231674222,0.3365599,103700.0,103690.0,0.68400594]
[1747231674414,0.4400599,103700.0,103690.0,0.78580594]
[1747231674613,0.0955,103700.0,103690.0,0.9304543]
[1747231674817,0.1013,103710.0,103700.0,0.192835]
[1747231675016,0.2932164,103710.0,103700.0,0.927849]
[1747231675325,0.3082164,103710.0,103700.0,1.31890054]
[1747231675532,0.3082164,103710.0,103700.0,1.4153279]
[1747231675717,0.3082164,103710.0,103700.0,1.2307139]
[1747231675909,0.3022164,103710.0,103700.0,1.2317139]
[1747231676113,0.4095164,103710.0,103700.0,1.2327139]
[1747231676617,0.4045164,103710.0,103700.0,1.2317139]
[1747231676816,0.6145164,103710.0,103700.0,1.2317139]
[1747231677425,0.7991304,103710.0,103700.0,0.8709139]
[1747231677617,0.6145164,103710.0,103700.0,0.8709139]
[1747231678021,0.6055164,103710.0,103700.0,0.8699139]
[1747231678222,0.9673164,103710.0,103700.0,0.7722139]
[1747231678422,0.6065164,103710.0,103700.0,0.7722139]
[1747231678624,0.9673164,103710.0,103700.0,0.7722139]
[1747231679119,0.9673164,103710.0,103700.0,0.28926236]
[1747231679120,1.1519304,103710.0,103700.0,0.28926236]
[1747231680327,0.7911304,103710.0,103700.0,0.38826236]
[1747231680525,0.6065164,103710.0,103700.0,0.48036236]
[1747231680825,0.7911304,103710.0,103700.0,0.7737139]
[1747231681217,0.6065164,103710.0,103700.0,0.7737139]
[1747231681417,0.192835,103700.0,103690.0,0.35174671]
[1747231681729,0.857749,103700.0,103690.0,0.39996117]
[1747231681920,0.958849,103700.0,103690.0,0.39996117]
[1747231682112,0.774235,103700.0,103690.0,0.49786117]
[1747231682312,0.774235,103700.0,103690.0,0.59516117]
[1747231682923,0.774235,103700.0,103690.0,0.59616117]
[1747231683623,0.958849,103700.0,103690.0,0.11169997]
[1747231683828,1.079649,103700.0,103690.0,0.001]
[1747231684323,1.441649,103700.0,103690.0,0.001]
[1747231684527,1.441649,103700.0,103690.0,0.01529775]
[1747231684920,1.442649,103700.0,103690.0,0.01429775]
[1747231685317,2.484885,103700.0,103690.0,0.01429775]
[1747231685515,0.1928722,103680.0,103670.0,0.34160024]
[1747231685717,0.5874862,103680.0,103670.0,0.19481661]
[1747231685914,0.8796862,103680.0,103670.0,0.58460481]
[1747231686120,0.8796862,103680.0,103670.0,0.67670481]
[1747231686730,0.6950722,103680.0,103670.0,0.67670481]
[1747231686929,0.6950722,103680.0,103670.0,0.77730481]
[1747231687229,0.1989,103680.0,103670.0,1.32271881]
[1747231687429,0.3917722,103680.0,103670.0,1.32271881]
[1747231687636,0.6018823,103690.0,103680.0,0.1928722]
[1747231687818,0.7929823,103690.0,103680.0,0.77832374]
[1747231688215,0.4321823,103690.0,103680.0,1.235579]
[1747231688931,0.4381823,103690.0,103680.0,1.235579]
[1747231689519,0.1971,103690.0,103680.0,1.235579]
[1747231689832,0.2937536,103690.0,103680.0,1.420193]
[1747231690230,0.2937536,103690.0,103680.0,1.397579]
[1747231690436,0.1009,103690.0,103680.0,1.397579]
[1747231690625,0.1009,103690.0,103680.0,1.582193]
[1747231690933,0.006,103690.0,103680.0,1.582193]
[1747231691127,0.1988536,103690.0,103680.0,1.582193]
[1747231691335,0.1988536,103690.0,103680.0,3.082193]
[1747231691537,0.2905536,103690.0,103680.0,3.082193]
[1747231691731,0.4105536,103690.0,103680.0,2.897579]
[1747231691928,0.2905536,103690.0,103680.0,2.897579]
[1747231692530,0.2905536,103690.0,103680.0,3.082193]
[1747231692724,0.2905536,103690.0,103680.0,2.897579]
[1747231692925,0.006,103690.0,103680.0,3.266807]
[1747231693130,0.38644051,103710.0,103700.0,0.192835]
[1747231693335,0.47894051,103710.0,103700.0,0.84698654]
[1747231693535,0.47894051,103710.0,103700.0,1.04198654]
[1747231693536,0.3822164,103710.0,103700.0,1.04198654]
[1747231693735,0.3822164,103710.0,103700.0,1.1384325]
[1747231693944,0.9276304,103710.0,103700.0,0.29335154]
[1747231694236,1.2576304,103710.0,103700.0,0.48618654]
[1747231694622,0.192835,103700.0,103690.0,0.48987831]
[1747231694825,0.736849,103700.0,103690.0,1.15861002]
[1747231695039,0.736849,103700.0,103690.0,1.25503738]
[1747231695236,0.552235,103700.0,103690.0,1.25503738]
[1747231695437,0.736849,103700.0,103690.0,0.74832718]
[1747231695639,1.192949,103700.0,103690.0,0.35767564]
[1747231696032,1.193949,103700.0,103690.0,0.35767564]
[1747231696233,1.193949,103700.0,103690.0,0.44877564]
[1747231696535,1.452309,103700.0,103690.0,0.00562071]
[1747231696744,1.452309,103700.0,103690.0,0.19847431]
[1747231697329,1.267695,103700.0,103690.0,0.19847431]
[1747231697531,1.091509,103700.0,103690.0,0.28957431]
[1747231697732,1.091509,103700.0,103690.0,0.38197431]
[1747231698839,1.091509,103700.0,103690.0,0.39618694]
[1747231699544,1.091509,103700.0,103690.0,0.68953848]
[1747231699744,0.906895,103700.0,103690.0,0.68953848]
[1747231700047,0.906895,103700.0,103690.0,0.78597514]
[1747231700343,0.906895,103700.0,103690.0,0.88247514]
[1747231700344,0.811595,103700.0,103690.0,0.88247514]
[1747231702547,0.641595,103700.0,103690.0,0.88247514]
[1747231702939,0.383235,103700.0,103690.0,0.88247514]
[1747231703141,0.1904,103700.0,103690.0,0.88247514]
[1747231703338,0.0979,103700.0,103690.0,1.42788914]
[1747231703537,0.001,103700.0,103690.0,1.68632914]
[1747231703947,0.001,103700.0,103690.0,3.18632914]
[1747231704348,0.001,103700.0,103690.0,3.34832914]
[1747231709656,0.001,103700.0,103690.0,3.34270843]
[1747231709951,0.3779164,103710.0,103700.0,0.377449]
[1747231710142,0.3779164,103710.0,103700.0,1.22610054]
[1747231710345,0.3779164,103710.0,103700.0,2.72610054]
[1747231710648,0.3779164,103710.0,103700.0,2.8225279]
[1747231711260,0.3799164,103710.0,103700.0,2.8225279]
[1747231711858,0.3819164,103710.0,103700.0,2.8225279]
[1747231713561,0.1891,103710.0,103700.0,2.8225279]
[1747231713857,0.69619,103720.0,103710.0,0.1928164]
[1747231714155,0.39312778,103730.0,103720.0,0.1927979]
[1747231714356,0.20034788,103730.0,103720.0,1.22546344]
[1747231714749,0.09854788,103730.0,103720.0,2.72546344]
[1747231714949,0.09854788,103730.0,103720.0,2.8218815]
[1747231715157,0.45625908,103740.0,103730.0,0.1927793]
[1747231715353,0.55055908,103740.0,103730.0,1.32364484]
[1747231715557,0.35779838,103740.0,103730.0,1.32364484]
[1747231715758,0.35779838,103740.0,103730.0,1.42005361]
[1747231715958,0.55055908,103740.0,103730.0,1.42005361]
[1747231716152,0.26409838,103740.0,103730.0,1.67845361]
[1747231716458,0.45685908,103740.0,103730.0,1.67845361]
[1747231716770,0.55055908,103740.0,103730.0,1.67845361]
[1747231717151,0.3807607,103740.0,103730.0,1.67845361]
[1747231717758,0.3817607,103740.0,103730.0,1.67845361]
[1747231718457,0.3847607,103740.0,103730.0,1.67845361]
[1747231718861,0.7117607,103740.0,103730.0,1.23543961]
[1747231719357,0.3817607,103740.0,103730.0,1.23543961]
[1747231720057,0.3817607,103740.0,103730.0,1.42005361]
[1747231720358,0.3817607,103740.0,103730.0,1.23543961]
[1747231720948,0.189,103740.0,103730.0,1.23543961]
[1747231721346,0.3817607,103740.0,103730.0,1.23543961]
[1747231721847,0.189,103740.0,103730.0,1.42005361]
[1747231722561,0.3817607,103740.0,103730.0,2.92005361]
[1747231722853,0.3817607,103740.0,103730.0,2.62670207]
[1747231723061,0.189,103740.0,103730.0,2.92005361]
[1747231723755,0.0953,103740.0,103730.0,2.92005361]
[1747231723958,0.0977,103750.0,103740.0,0.1927607]
[1747231724266,0.3874421,103750.0,103740.0,1.48440624]
[1747231724554,0.3874421,103750.0,103740.0,1.58079642]
[1747231725063,0.2907421,103750.0,103740.0,1.28744488]
[1747231725359,0.2907421,103750.0,103740.0,1.39618242]
[1747231725560,0.3884421,103750.0,103740.0,1.58079642]
[1747231725857,0.5384421,103750.0,103740.0,1.39618242]
[1747231726556,0.3884421,103750.0,103740.0,1.39618242]
[1747231726948,0.1967,103750.0,103740.0,1.58079642]
[1747231727355,0.3894421,103750.0,103740.0,1.58079642]
[1747231727555,0.1967,103750.0,103740.0,1.58079642]
[1747231727757,0.3894421,103750.0,103740.0,1.58079642]
[1747231728164,0.3894421,103750.0,103740.0,3.08079642]
[1747231728464,0.1967,103750.0,103740.0,3.08079642]
[1747231728656,0.3894421,103750.0,103740.0,3.08079642]
[1747231728855,0.1967,103750.0,103740.0,3.08079642]
[1747231731057,0.1967,103750.0,103740.0,3.08641713]
[1747231732365,0.1967,103750.0,103740.0,2.90180313]
[1747231732565,0.1967,103750.0,103740.0,3.08641713]
[1747231738068,0.099,103750.0,103740.0,3.08641713]
[1747231738860,0.1978,103750.0,103740.0,3.08641713]
[1747231744672,0.1978,103750.0,103740.0,3.27103113]
[1747231745265,0.1978,103750.0,103740.0,3.08641713]
[1747231748474,0.1009,103760.0,103750.0,0.1927421]
[1747231748670,0.1975,103760.0,103750.0,1.32930764]
[1747231749172,0.1975,103760.0,103750.0,1.42569782]
[1747231749671,0.2005,103760.0,103750.0,1.42569782]
[1747231749870,0.2025,103760.0,103750.0,2.92569782]
[1747231751372,0.2025,103760.0,103750.0,2.74108382]
[1747231751564,0.3039,103760.0,103750.0,2.9398967]
[1747231751767,0.3039,103760.0,103750.0,3.08668033]
[1747231752968,0.3039,103760.0,103750.0,2.90206633]
[1747231753170,0.3039,103760.0,103750.0,3.08668033]
[1747231754769,0.3039,103760.0,103750.0,2.90206633]
[1747231755067,0.3039,103760.0,103750.0,3.08668033]
[1747231755773,0.3039,103760.0,103750.0,2.90206633]
[1747231756081,0.3039,103760.0,103750.0,3.08668033]
[1747231756682,0.3039,103760.0,103750.0,2.90206633]
[1747231756871,0.3039,103760.0,103750.0,3.08668033]
[1747231757565,0.3039,103760.0,103750.0,2.90206633]
[1747231757770,0.3039,103760.0,103750.0,3.08668033]
[1747231758075,0.3039,103760.0,103750.0,1.58668033]
[1747231758581,0.3039,103760.0,103750.0,3.08668033]
[1747231758779,0.07407427,103780.0,103770.0,0.192705]
[1747231759080,0.07407427,103780.0,103770.0,2.25016454]
[1747231759280,0.07407427,103780.0,103770.0,2.36055054]
[1747231759576,0.07407427,103780.0,103770.0,2.64154543]
[1747231760161,0.07407427,103780.0,103770.0,2.45693143]
[1747231760367,0.07507427,103780.0,103770.0,2.64154543]
[1747231761073,0.07607427,103780.0,103770.0,2.64154543]
[1747231761479,0.07607427,103780.0,103770.0,2.65133367]
[1747231762175,0.07607427,103780.0,103770.0,2.14005367]
[1747231762376,0.07607427,103780.0,103770.0,2.65117367]
[1747231763282,0.003,103780.0,103770.0,2.28194567]
[1747231763582,0.003,103780.0,103770.0,2.65117367]
[1747231764078,0.003,103780.0,103770.0,4.15117367]